[Event "Early-Titled-Tuesday-Blitz-May-14-2024"]
[Site "Chess.com"]
[Date "2024.05.14"]
[Round "5"]
[White "Zq1"]
[Black "Eliwood44"]
[Result "1-0"]
[WhiteElo "2621"]
[BlackElo "2456"]
[TimeControl "180+1"]
[EndTime "8:56:31 PDT"]
[Termination "Zq1 won by resignation"]

1. d4 {[%clk 0:03:00.9]} 1... Nf6 {[%clk 0:02:51.5]} 2. c4 {[%clk 0:03:00.2]}
2... e6 {[%clk 0:02:50.6]} 3. g3 {[%clk 0:03:00.2]} 3... Bb4+ {[%clk 0:02:49.3]}
4. Nd2 {[%clk 0:02:59.3]} 4... d5 {[%clk 0:02:46]} 5. Bg2 {[%clk 0:02:58.2]}
5... O-O {[%clk 0:02:45.6]} 6. Nf3 {[%clk 0:02:57.3]} 6... c6 {[%clk 0:02:45.9]}
7. O-O {[%clk 0:02:55.2]} 7... Nbd7 {[%clk 0:02:42.9]} 8. Qc2 {[%clk 0:02:54.9]}
8... Bd6 {[%clk 0:02:42.4]} 9. b3 {[%clk 0:02:51.8]} 9... Re8 {[%clk 0:02:42.5]}
10. Bb2 {[%clk 0:02:51.1]} 10... a5 {[%clk 0:02:42.3]} 11. a3 {[%clk 0:02:45.3]}
11... Qe7 {[%clk 0:02:37.4]} 12. Rfe1 {[%clk 0:02:33]} 12... e5 {[%clk
0:02:35.6]} 13. cxd5 {[%clk 0:02:31.3]} 13... cxd5 {[%clk 0:02:35.3]} 14. dxe5
{[%clk 0:02:28.5]} 14... Nxe5 {[%clk 0:02:36.2]} 15. Nxe5 {[%clk 0:02:27.8]}
15... Bxe5 {[%clk 0:02:37.1]} 16. Bxe5 {[%clk 0:02:26.7]} 16... Qxe5 {[%clk
0:02:38]} 17. Nf3 {[%clk 0:02:23.6]} 17... Qe4 {[%clk 0:02:38.1]} 18. Qb2 {[%clk
0:02:16.4]} 18... Bd7 {[%clk 0:02:29]} 19. Rad1 {[%clk 0:02:13.8]} 19... Rac8
{[%clk 0:02:27]} 20. Nd4 {[%clk 0:02:04.5]} 20... Qe5 {[%clk 0:02:26.8]} 21. e3
{[%clk 0:02:00.8]} 21... Bg4 {[%clk 0:02:23.8]} 22. Rc1 {[%clk 0:01:59.4]} 22...
h5 {[%clk 0:02:21.8]} 23. Rxc8 {[%clk 0:01:54.5]} 23... Rxc8 {[%clk 0:02:22.7]}
24. Rc1 {[%clk 0:01:53.6]} 24... Rxc1+ {[%clk 0:02:18.2]} 25. Qxc1 {[%clk
0:01:52.8]} 25... h4 {[%clk 0:02:18.6]} 26. h3 {[%clk 0:01:51.6]} 26... hxg3
{[%clk 0:02:14.6]} 27. hxg4 {[%clk 0:01:50.2]} 27... gxf2+ {[%clk 0:02:14.6]}
28. Kxf2 {[%clk 0:01:49]} 28... Nxg4+ {[%clk 0:02:14.9]} 29. Ke2 {[%clk
0:01:48.4]} 29... Qg3 {[%clk 0:02:14.9]} 30. Qg1 {[%clk 0:01:40.4]} 30... Nxe3
{[%clk 0:02:06.5]} 31. Qxe3 {[%clk 0:01:35.6]} 31... Qxg2+ {[%clk 0:02:06.7]}
32. Qf2 {[%clk 0:01:28.1]} 32... Qe4+ {[%clk 0:02:06.1]} 33. Kd2 {[%clk
0:01:27.8]} 33... Qb1 {[%clk 0:02:04.2]} 34. Qe3 {[%clk 0:01:20.3]} 34... Qb2+
{[%clk 0:01:58]} 35. Nc2 {[%clk 0:01:18.6]} 35... g6 {[%clk 0:01:54.5]} 36. Qc3
{[%clk 0:01:11.7]} 36... Qa2 {[%clk 0:01:43.8]} 37. Qc8+ {[%clk 0:01:07.6]}
37... Kg7 {[%clk 0:01:41.5]} 38. Qxb7 {[%clk 0:01:07.5]} 38... Qb1 {[%clk
0:01:33.6]} 39. Qxd5 {[%clk 0:01:03.5]} 39... f6 {[%clk 0:01:32.5]} 40. Qd7+
{[%clk 0:00:54.8]} 40... Kh6 {[%clk 0:01:31.6]} 41. Qe6 {[%clk 0:00:51.9]} 41...
f5 {[%clk 0:01:28.8]} 42. a4 {[%clk 0:00:44.4]} 42... Qg1 {[%clk 0:01:26.4]} 43.
Qe3+ {[%clk 0:00:43.1]} 43... Qxe3+ {[%clk 0:01:25.8]} 44. Kxe3 {[%clk
0:00:42.8]} 44... g5 {[%clk 0:01:26.4]} 45. b4 {[%clk 0:00:42.1]} 45... axb4
{[%clk 0:01:26]} 46. Nxb4 {[%clk 0:00:36.5]} 46... Kh5 {[%clk 0:01:25.6]} 47. a5
{[%clk 0:00:36]} 47... g4 {[%clk 0:01:26]} 48. Kf4 {[%clk 0:00:30.9]} 48... Kh4
{[%clk 0:01:25.6]} 49. Nd3 {[%clk 0:00:30]} 49... g3 {[%clk 0:01:25.7]} 50. Ne1
{[%clk 0:00:28.2]} 1-0

[Event "Early-Titled-Tuesday-Blitz-May-14-2024"]
[Site "Chess.com"]
[Date "2024.05.14"]
[Round "5"]
[White "hikaruchija"]
[Black "ReinisUz"]
[Result "1-0"]
[WhiteElo "2598"]
[BlackElo "2426"]
[TimeControl "180+1"]
[EndTime "8:56:31 PDT"]
[Termination "hikaruchija won by checkmate"]

1. e4 {[%clk 0:03:00.9]} 1... e5 {[%clk 0:02:59.7]} 2. Nf3 {[%clk 0:03:00.1]}
2... Nc6 {[%clk 0:02:59.2]} 3. Bc4 {[%clk 0:03:00.6]} 3... Bc5 {[%clk
0:02:58.3]} 4. c3 {[%clk 0:03:00.3]} 4... Nf6 {[%clk 0:02:57.8]} 5. d3 {[%clk
0:02:59.9]} 5... O-O {[%clk 0:02:57.3]} 6. Bb3 {[%clk 0:02:57.6]} 6... a6 {[%clk
0:02:56.4]} 7. Nbd2 {[%clk 0:02:57]} 7... h6 {[%clk 0:02:56.1]} 8. Nf1 {[%clk
0:02:55.6]} 8... d6 {[%clk 0:02:56]} 9. h3 {[%clk 0:02:55.1]} 9... Re8 {[%clk
0:02:56.5]} 10. g4 {[%clk 0:02:54.5]} 10... Be6 {[%clk 0:02:56.3]} 11. g5 {[%clk
0:02:51.8]} 11... hxg5 {[%clk 0:02:54.1]} 12. Bxg5 {[%clk 0:02:52.7]} 12... b5
{[%clk 0:02:51]} 13. Rg1 {[%clk 0:02:50]} 13... Kf8 {[%clk 0:02:48.9]} 14. Ng3
{[%clk 0:02:48.8]} 14... Qd7 {[%clk 0:02:42]} 15. Bxf6 {[%clk 0:02:36.3]} 15...
gxf6 {[%clk 0:02:41.2]} 16. Nh4 {[%clk 0:02:36.8]} 16... d5 {[%clk 0:02:27.3]}
17. Qf3 {[%clk 0:02:33.7]} 17... dxe4 {[%clk 0:02:23.4]} 18. dxe4 {[%clk
0:02:34.6]} 18... Bxb3 {[%clk 0:02:23.2]} 19. axb3 {[%clk 0:02:33.6]} 19... Ne7
{[%clk 0:02:05.2]} 20. Qxf6 {[%clk 0:02:16.9]} 20... Qxh3 {[%clk 0:01:56.4]} 21.
Ngf5 {[%clk 0:02:07.7]} 21... Nxf5 {[%clk 0:01:43]} 22. Nxf5 {[%clk 0:02:08.6]}
22... Qh7 {[%clk 0:01:11]} 23. O-O-O {[%clk 0:01:56.3]} 23... Re6 {[%clk
0:01:03.1]} 24. Rd8+ {[%clk 0:01:45]} 24... Rxd8 {[%clk 0:01:02.1]} 25. Qxd8+
{[%clk 0:01:45.9]} 25... Re8 {[%clk 0:01:01.8]} 26. Qxc7 {[%clk 0:01:43.3]}
26... Be7 {[%clk 0:01:00.8]} 27. Kb1 {[%clk 0:01:39]} 27... Qh2 {[%clk 0:00:55]}
28. Rd1 {[%clk 0:01:12.7]} 28... Qh5 {[%clk 0:00:52.4]} 29. Rd7 {[%clk
0:01:08.9]} 29... Bg5 {[%clk 0:00:39.8]} 30. Ka2 {[%clk 0:01:07.2]} 30... Kg8
{[%clk 0:00:34.4]} 31. Nd6 {[%clk 0:01:03.7]} 31... Rf8 {[%clk 0:00:30.8]} 32.
Nf5 {[%clk 0:01:03.1]} 32... Qf3 {[%clk 0:00:21.6]} 33. Qxe5 {[%clk 0:01:00.5]}
33... Qxf2 {[%clk 0:00:20.5]} 34. Qg7# {[%clk 0:00:58.8]} 1-0

[Event "Early-Titled-Tuesday-Blitz-May-14-2024"]
[Site "Chess.com"]
[Date "2024.05.14"]
[Round "5"]
[White "Renatoforf"]
[Black "noblerone"]
[Result "0-1"]
[WhiteElo "1946"]
[BlackElo "2503"]
[TimeControl "180+1"]
[EndTime "8:56:32 PDT"]
[Termination "noblerone won by resignation"]

1. e4 {[%clk 0:03:00.9]} 1... c5 {[%clk 0:02:59.5]} 2. d4 {[%clk 0:02:58.7]}
2... cxd4 {[%clk 0:02:57.1]} 3. c3 {[%clk 0:02:58.6]} 3... Nf6 {[%clk
0:02:57.5]} 4. e5 {[%clk 0:02:56.5]} 4... Nd5 {[%clk 0:02:57.3]} 5. Nf3 {[%clk
0:02:56.1]} 5... e6 {[%clk 0:02:56.1]} 6. cxd4 {[%clk 0:02:55]} 6... d6 {[%clk
0:02:56.4]} 7. Bc4 {[%clk 0:02:51.5]} 7... Be7 {[%clk 0:02:53.2]} 8. O-O {[%clk
0:02:50.2]} 8... O-O {[%clk 0:02:52.2]} 9. Nbd2 {[%clk 0:02:43]} 9... dxe5
{[%clk 0:02:41.4]} 10. Nxe5 {[%clk 0:02:41.4]} 10... Nd7 {[%clk 0:02:36.7]} 11.
Ndf3 {[%clk 0:02:37.5]} 11... N7f6 {[%clk 0:02:31.1]} 12. Re1 {[%clk 0:02:34.9]}
12... Bd7 {[%clk 0:02:29.9]} 13. Bg5 {[%clk 0:02:29.1]} 13... Rc8 {[%clk
0:02:24.9]} 14. Rc1 {[%clk 0:02:27]} 14... Bc6 {[%clk 0:02:19.4]} 15. Nxc6
{[%clk 0:02:21.2]} 15... Rxc6 {[%clk 0:02:11.1]} 16. Ne5 {[%clk 0:02:17.3]}
16... Rc8 {[%clk 0:01:57.8]} 17. Bb3 {[%clk 0:02:07.1]} 17... h6 {[%clk
0:01:48]} 18. Bh4 {[%clk 0:02:04.5]} 18... Qa5 {[%clk 0:01:39.2]} 19. Rxc8
{[%clk 0:01:50.2]} 19... Rxc8 {[%clk 0:01:38.7]} 20. Qe2 {[%clk 0:01:43.4]}
20... Qb4 {[%clk 0:01:31.8]} 21. Nxf7 {[%clk 0:01:32.9]} 21... Nf4 {[%clk
0:01:06.9]} 22. Qe3 {[%clk 0:01:27.1]} 22... Ng4 {[%clk 0:00:51.3]} 23. Qe4
{[%clk 0:01:12.2]} 23... Bxh4 {[%clk 0:00:45.4]} 24. g3 {[%clk 0:01:05.6]} 24...
Nf6 {[%clk 0:00:37.7]} 25. Qxf4 {[%clk 0:00:52]} 25... Qxe1+ {[%clk 0:00:37]}
26. Kg2 {[%clk 0:00:52.5]} 26... Qe4+ {[%clk 0:00:35.5]} 27. Qxe4 {[%clk
0:00:51.3]} 27... Nxe4 {[%clk 0:00:36.4]} 28. Bxe6 {[%clk 0:00:44.8]} 28... Re8
{[%clk 0:00:30.4]} 0-1

[Event "Early-Titled-Tuesday-Blitz-May-14-2024"]
[Site "Chess.com"]
[Date "2024.05.14"]
[Round "5"]
[White "Larina_Maria"]
[Black "manmanlai1"]
[Result "0-1"]
[WhiteElo "2391"]
[BlackElo "2593"]
[TimeControl "180+1"]
[EndTime "8:56:33 PDT"]
[Termination "manmanlai1 won by checkmate"]

1. e4 {[%clk 0:03:00.9]} 1... c5 {[%clk 0:02:28.2]} 2. Nc3 {[%clk 0:03:00.2]}
2... e6 {[%clk 0:02:27.9]} 3. Nf3 {[%clk 0:02:56.9]} 3... a6 {[%clk 0:02:27.8]}
4. g3 {[%clk 0:02:50]} 4... b5 {[%clk 0:02:27]} 5. Bg2 {[%clk 0:02:50]} 5... Bb7
{[%clk 0:02:27.3]} 6. d3 {[%clk 0:02:42.1]} 6... Qc7 {[%clk 0:02:27.5]} 7. O-O
{[%clk 0:02:41.1]} 7... Nc6 {[%clk 0:02:27.1]} 8. Re1 {[%clk 0:02:39.3]} 8... d6
{[%clk 0:02:22.8]} 9. d4 {[%clk 0:02:10.4]} 9... cxd4 {[%clk 0:02:19.2]} 10.
Nxd4 {[%clk 0:02:11.3]} 10... Be7 {[%clk 0:02:18.2]} 11. Nd5 {[%clk 0:01:47.3]}
11... exd5 {[%clk 0:02:15.7]} 12. exd5 {[%clk 0:01:48.2]} 12... Nxd4 {[%clk
0:02:14.9]} 13. Qxd4 {[%clk 0:01:45.9]} 13... Nf6 {[%clk 0:02:15.2]} 14. Bg5
{[%clk 0:01:39.9]} 14... O-O {[%clk 0:02:14.6]} 15. Re2 {[%clk 0:01:16.6]} 15...
h6 {[%clk 0:01:59.2]} 16. Rae1 {[%clk 0:01:06.7]} 16... Rae8 {[%clk 0:01:59.6]}
17. Bf4 {[%clk 0:00:47.2]} 17... Bd8 {[%clk 0:01:58.2]} 18. Qb4 {[%clk
0:00:34.2]} 18... Rxe2 {[%clk 0:01:48.2]} 19. Rxe2 {[%clk 0:00:35.1]} 19... Be7
{[%clk 0:01:46.5]} 20. Qd4 {[%clk 0:00:16.4]} 20... Rd8 {[%clk 0:01:43.3]} 21.
h3 {[%clk 0:00:14.3]} 21... Bc8 {[%clk 0:01:42.8]} 22. g4 {[%clk 0:00:14.3]}
22... Re8 {[%clk 0:01:37.6]} 23. Bf3 {[%clk 0:00:12.7]} 23... Bf8 {[%clk
0:01:34.9]} 24. Rxe8 {[%clk 0:00:12]} 24... Nxe8 {[%clk 0:01:35]} 25. c3 {[%clk
0:00:12.6]} 25... Be7 {[%clk 0:01:32.8]} 26. Qe3 {[%clk 0:00:12.4]} 26... Nf6
{[%clk 0:01:25]} 27. Bxh6 {[%clk 0:00:10]} 27... gxh6 {[%clk 0:01:24.6]} 28.
Qxh6 {[%clk 0:00:10.9]} 28... Qc4 {[%clk 0:01:16.5]} 29. g5 {[%clk 0:00:10.1]}
29... Qf4 {[%clk 0:01:13.7]} 30. Be2 {[%clk 0:00:07.6]} 30... Ne4 {[%clk
0:01:09.4]} 31. f3 {[%clk 0:00:06.3]} 31... Qg3+ {[%clk 0:01:08.5]} 32. Kh1
{[%clk 0:00:06.3]} 32... Nf2# {[%clk 0:01:08.8]} 0-1

[Event "Early-Titled-Tuesday-Blitz-May-14-2024"]
[Site "Chess.com"]
[Date "2024.05.14"]
[Round "5"]
[White "gilbert_gm"]
[Black "HowTo2Draw"]
[Result "1/2-1/2"]
[WhiteElo "2900"]
[BlackElo "2549"]
[TimeControl "180+1"]
[EndTime "8:56:34 PDT"]
[Termination "Game drawn by agreement"]

1. e4 {[%clk 0:03:00.9]} 1... c6 {[%clk 0:02:50.9]} 2. Nf3 {[%clk 0:02:52.9]}
2... d5 {[%clk 0:02:50.6]} 3. d3 {[%clk 0:02:53.7]} 3... dxe4 {[%clk 0:02:50.5]}
4. dxe4 {[%clk 0:02:54.6]} 4... Qxd1+ {[%clk 0:02:50.7]} 5. Kxd1 {[%clk
0:02:55.5]} 5... f6 {[%clk 0:02:51.2]} 6. Bc4 {[%clk 0:02:42.7]} 6... e5 {[%clk
0:02:50.5]} 7. Be3 {[%clk 0:02:42.9]} 7... Bg4 {[%clk 0:02:48.3]} 8. Nd2 {[%clk
0:02:38.6]} 8... Nd7 {[%clk 0:02:48.1]} 9. h3 {[%clk 0:02:26]} 9... Bh5 {[%clk
0:02:47.6]} 10. Ke2 {[%clk 0:02:26.1]} 10... Bc5 {[%clk 0:02:46.9]} 11. a4
{[%clk 0:02:20.9]} 11... Ne7 {[%clk 0:02:45.7]} 12. Rhd1 {[%clk 0:02:20.1]}
12... Bxe3 {[%clk 0:02:38.8]} 13. Kxe3 {[%clk 0:02:21]} 13... Nb6 {[%clk
0:02:37.1]} 14. Bb3 {[%clk 0:02:02.6]} 14... a5 {[%clk 0:02:35.4]} 15. Nc4
{[%clk 0:02:02.4]} 15... Nxc4+ {[%clk 0:02:30.6]} 16. Bxc4 {[%clk 0:02:03.3]}
16... Rd8 {[%clk 0:02:28]} 17. g4 {[%clk 0:01:59.4]} 17... Bg6 {[%clk
0:02:22.8]} 18. Nh4 {[%clk 0:01:57.4]} 18... Nc8 {[%clk 0:02:17.8]} 19. Nf5
{[%clk 0:01:52.7]} 19... Bxf5 {[%clk 0:02:17.2]} 20. gxf5 {[%clk 0:01:52.5]}
20... Rxd1 {[%clk 0:02:07.3]} 21. Rxd1 {[%clk 0:01:52]} 21... g5 {[%clk
0:01:56.5]} 22. Be6 {[%clk 0:01:46.7]} 22... Nb6 {[%clk 0:01:56.6]} 23. c4
{[%clk 0:01:40.4]} 23... h5 {[%clk 0:01:47.7]} 24. b3 {[%clk 0:01:32.2]} 24...
Rh7 {[%clk 0:01:35.7]} 25. h4 {[%clk 0:01:23.3]} 25... gxh4 {[%clk 0:01:33.3]}
26. f4 {[%clk 0:01:16.9]} 26... exf4+ {[%clk 0:01:28.3]} 27. Kxf4 {[%clk
0:01:17.8]} 27... Nd7 {[%clk 0:01:27.9]} 28. Bxd7+ {[%clk 0:00:49.9]} 28... Rxd7
{[%clk 0:01:26.9]} 29. Rxd7 {[%clk 0:00:50.8]} 29... Kxd7 {[%clk 0:01:26.7]} 30.
c5 {[%clk 0:00:51.4]} 30... Ke7 {[%clk 0:00:49]} 31. Kf3 {[%clk 0:00:50.9]}
31... Kf7 {[%clk 0:00:49.5]} 32. Kg2 {[%clk 0:00:50.7]} 32... Kg7 {[%clk
0:00:49]} 33. Kh3 {[%clk 0:00:50.6]} 33... Kh7 {[%clk 0:00:49.5]} 1/2-1/2

[Event "Early-Titled-Tuesday-Blitz-May-14-2024"]
[Site "Chess.com"]
[Date "2024.05.14"]
[Round "5"]
[White "mostafa_sakha"]
[Black "jraosam"]
[Result "1/2-1/2"]
[WhiteElo "2334"]
[BlackElo "2056"]
[TimeControl "180+1"]
[EndTime "8:56:40 PDT"]
[Termination "Game drawn by repetition"]

1. d4 {[%clk 0:02:58.8]} 1... d5 {[%clk 0:03:00]} 2. c4 {[%clk 0:02:57.1]} 2...
e6 {[%clk 0:02:59.9]} 3. Nc3 {[%clk 0:02:56.7]} 3... Nf6 {[%clk 0:02:59.9]} 4.
cxd5 {[%clk 0:02:53.6]} 4... exd5 {[%clk 0:02:59.7]} 5. Bg5 {[%clk 0:02:53.2]}
5... c6 {[%clk 0:02:58]} 6. e3 {[%clk 0:02:51.8]} 6... Be7 {[%clk 0:02:55.9]} 7.
Bd3 {[%clk 0:02:50.8]} 7... O-O {[%clk 0:02:55.4]} 8. Nge2 {[%clk 0:02:49.9]}
8... Nbd7 {[%clk 0:02:55.6]} 9. Qc2 {[%clk 0:02:49]} 9... h6 {[%clk 0:02:54]}
10. Bh4 {[%clk 0:02:48.7]} 10... Re8 {[%clk 0:02:54.4]} 11. O-O-O {[%clk
0:02:48.3]} 11... Nf8 {[%clk 0:02:53.5]} 12. Kb1 {[%clk 0:02:47.4]} 12... Nh5
{[%clk 0:02:41]} 13. Bxe7 {[%clk 0:02:43.9]} 13... Qxe7 {[%clk 0:02:40.5]} 14.
Ng3 {[%clk 0:02:35]} 14... Nxg3 {[%clk 0:02:39.2]} 15. hxg3 {[%clk 0:02:34.5]}
15... Bd7 {[%clk 0:02:37.2]} 16. Bf5 {[%clk 0:02:25.3]} 16... Bxf5 {[%clk
0:02:24.9]} 17. Qxf5 {[%clk 0:02:24.2]} 17... Qe6 {[%clk 0:02:25.3]} 18. g4
{[%clk 0:02:21.7]} 18... Rad8 {[%clk 0:02:18]} 19. Qf3 {[%clk 0:02:01.8]} 19...
Qg6+ {[%clk 0:02:16.6]} 20. Ka1 {[%clk 0:02:00.2]} 20... Ne6 {[%clk 0:02:16.5]}
21. Rh5 {[%clk 0:01:56.4]} 21... Ng5 {[%clk 0:02:15.1]} 22. Qf4 {[%clk
0:01:53.8]} 22... Ne4 {[%clk 0:02:08.2]} 23. Nxe4 {[%clk 0:01:40.4]} 23... Qxe4
{[%clk 0:02:02.2]} 24. Qg3 {[%clk 0:01:22]} 24... Re6 {[%clk 0:01:55.8]} 25. g5
{[%clk 0:01:15]} 25... Rg6 {[%clk 0:01:54.6]} 26. Qc7 {[%clk 0:00:59.7]} 26...
Rf8 {[%clk 0:01:53.8]} 27. gxh6 {[%clk 0:00:58.6]} 27... Qg4 {[%clk 0:01:21.5]}
28. Rdh1 {[%clk 0:00:43.8]} 28... Qxg2 {[%clk 0:01:21.8]} 29. a3 {[%clk
0:00:43.7]} 29... gxh6 {[%clk 0:01:07.9]} 30. Rxh6 {[%clk 0:00:43.1]} 30... Rxh6
{[%clk 0:01:08.2]} 31. Rxh6 {[%clk 0:00:44]} 31... Qf1+ {[%clk 0:01:08.8]} 32.
Ka2 {[%clk 0:00:43]} 32... Qc4+ {[%clk 0:01:09.7]} 33. Ka1 {[%clk 0:00:39]}
33... Qc1+ {[%clk 0:01:09]} 34. Ka2 {[%clk 0:00:37.9]} 34... Qc4+ {[%clk
0:01:09.9]} 35. Ka1 {[%clk 0:00:22.8]} 35... Qc1+ {[%clk 0:01:09.1]} 36. Ka2
{[%clk 0:00:21.9]} 36... Qc4+ {[%clk 0:01:10]} 1/2-1/2

[Event "Early-Titled-Tuesday-Blitz-May-14-2024"]
[Site "Chess.com"]
[Date "2024.05.14"]
[Round "5"]
[White "Ural_bogatyr"]
[Black "chess_sharparchitect"]
[Result "0-1"]
[WhiteElo "2550"]
[BlackElo "2330"]
[TimeControl "180+1"]
[EndTime "8:56:45 PDT"]
[Termination "chess_sharparchitect won by resignation"]

1. d4 {[%clk 0:01:47.9]} 1... Nf6 {[%clk 0:02:59.2]} 2. Nc3 {[%clk 0:01:46.6]}
2... d5 {[%clk 0:02:58.9]} 3. Bf4 {[%clk 0:01:45.5]} 3... Bf5 {[%clk 0:02:47.4]}
4. e3 {[%clk 0:01:44.6]} 4... c6 {[%clk 0:02:42.9]} 5. f3 {[%clk 0:01:44.3]}
5... e6 {[%clk 0:02:29.7]} 6. g4 {[%clk 0:01:44.1]} 6... Bg6 {[%clk 0:02:29.1]}
7. h4 {[%clk 0:01:44.6]} 7... h5 {[%clk 0:02:21.3]} 8. g5 {[%clk 0:01:44.5]}
8... Ng8 {[%clk 0:02:11.5]} 9. Bd3 {[%clk 0:01:45]} 9... Bxd3 {[%clk 0:02:03]}
10. Qxd3 {[%clk 0:01:45.9]} 10... g6 {[%clk 0:02:03.6]} 11. Be5 {[%clk
0:01:42.7]} 11... Rh7 {[%clk 0:02:00.9]} 12. Nge2 {[%clk 0:01:38.3]} 12... Bd6
{[%clk 0:01:57.9]} 13. O-O-O {[%clk 0:01:32.6]} 13... Bxe5 {[%clk 0:01:51.8]}
14. dxe5 {[%clk 0:01:33.5]} 14... Nd7 {[%clk 0:01:51.4]} 15. f4 {[%clk
0:01:33.4]} 15... Ne7 {[%clk 0:01:51]} 16. e4 {[%clk 0:01:33.3]} 16... Nc5
{[%clk 0:01:31.7]} 17. Qe3 {[%clk 0:01:31.6]} 17... Qb6 {[%clk 0:01:30.5]} 18.
Nd4 {[%clk 0:01:27.7]} 18... O-O-O {[%clk 0:01:12.6]} 19. Rhe1 {[%clk
0:01:27.2]} 19... Rhh8 {[%clk 0:01:10.4]} 20. exd5 {[%clk 0:01:26.2]} 20... Nxd5
{[%clk 0:01:08.1]} 21. Qf3 {[%clk 0:01:10.9]} 21... Nxc3 {[%clk 0:01:03]} 22.
Qxc3 {[%clk 0:00:56.9]} 22... Na4 {[%clk 0:00:56.5]} 23. Qb3 {[%clk 0:00:49.7]}
23... Rxd4 {[%clk 0:00:53]} 24. Rxd4 {[%clk 0:00:46.8]} 24... Qxd4 {[%clk
0:00:51.6]} 25. Rd1 {[%clk 0:00:47.7]} 25... Qxf4+ {[%clk 0:00:50.4]} 26. Kb1
{[%clk 0:00:40.3]} 26... Nb6 {[%clk 0:00:48]} 27. Qa3 {[%clk 0:00:40]} 27...
Qxe5 {[%clk 0:00:38.5]} 28. Qxa7 {[%clk 0:00:36.7]} 28... Qc7 {[%clk 0:00:28]}
0-1

[Event "Early-Titled-Tuesday-Blitz-May-14-2024"]
[Site "Chess.com"]
[Date "2024.05.14"]
[Round "5"]
[White "mistrzemi"]
[Black "Alexchess1984"]
[Result "0-1"]
[WhiteElo "2427"]
[BlackElo "2680"]
[TimeControl "180+1"]
[EndTime "8:56:45 PDT"]
[Termination "Alexchess1984 won by checkmate"]

1. e4 {[%clk 0:03:00.9]} 1... c5 {[%clk 0:02:59.3]} 2. Nf3 {[%clk 0:02:58.5]}
2... Nc6 {[%clk 0:02:59.7]} 3. Bb5 {[%clk 0:02:57.7]} 3... g5 {[%clk 0:02:59.4]}
4. Bxc6 {[%clk 0:02:49.6]} 4... dxc6 {[%clk 0:02:59.3]} 5. d3 {[%clk 0:02:49.2]}
5... h6 {[%clk 0:02:52.6]} 6. Nc3 {[%clk 0:02:41.3]} 6... b6 {[%clk 0:02:51.7]}
7. Be3 {[%clk 0:02:40.6]} 7... Qc7 {[%clk 0:02:50.5]} 8. a4 {[%clk 0:02:37.6]}
8... a5 {[%clk 0:02:50]} 9. Nd2 {[%clk 0:02:36.7]} 9... e5 {[%clk 0:02:49.2]}
10. Nc4 {[%clk 0:02:23.9]} 10... Ne7 {[%clk 0:02:44.7]} 11. h4 {[%clk
0:02:21.7]} 11... g4 {[%clk 0:02:34.3]} 12. Qd2 {[%clk 0:02:17]} 12... h5 {[%clk
0:02:31.1]} 13. f4 {[%clk 0:02:16.3]} 13... gxf3 {[%clk 0:02:26.7]} 14. gxf3
{[%clk 0:02:17.2]} 14... Ng6 {[%clk 0:02:27]} 15. Bg5 {[%clk 0:02:12.9]} 15...
Be6 {[%clk 0:02:24.3]} 16. Ne3 {[%clk 0:02:12.7]} 16... Be7 {[%clk 0:02:18.5]}
17. Nf5 {[%clk 0:01:41.6]} 17... Bxf5 {[%clk 0:02:05.6]} 18. exf5 {[%clk
0:01:42.5]} 18... Bxg5 {[%clk 0:02:05.1]} 19. Qxg5 {[%clk 0:01:39.4]} 19... Nf4
{[%clk 0:02:05.7]} 20. Ne4 {[%clk 0:01:37.3]} 20... Qe7 {[%clk 0:01:50]} 21.
O-O-O {[%clk 0:00:57]} 21... Qxg5 {[%clk 0:01:40.3]} 22. hxg5 {[%clk 0:00:57.9]}
22... Ke7 {[%clk 0:01:39.5]} 23. Kd2 {[%clk 0:00:43.3]} 23... h4 {[%clk
0:01:33.1]} 24. Rdg1 {[%clk 0:00:42.5]} 24... h3 {[%clk 0:01:26]} 25. Ke3 {[%clk
0:00:39.6]} 25... Rag8 {[%clk 0:01:21.5]} 26. Nf6 {[%clk 0:00:30.3]} 26... Ng2+
{[%clk 0:01:09.9]} 27. Ke4 {[%clk 0:00:11.3]} 27... Rxg5 {[%clk 0:01:09.4]} 28.
Kxe5 {[%clk 0:00:11.2]} 28... Rh6 {[%clk 0:00:51.2]} 29. Ng4 {[%clk 0:00:06.1]}
29... Re6# {[%clk 0:00:49.5]} 0-1

[Event "Early-Titled-Tuesday-Blitz-May-14-2024"]
[Site "Chess.com"]
[Date "2024.05.14"]
[Round "5"]
[White "DominguezOnYoutube"]
[Black "Revan_2002"]
[Result "1-0"]
[WhiteElo "3007"]
[BlackElo "2736"]
[TimeControl "180+1"]
[EndTime "8:56:59 PDT"]
[Termination "DominguezOnYoutube won by resignation"]

1. e4 {[%clk 0:03:00.9]} 1... e5 {[%clk 0:02:33]} 2. Nf3 {[%clk 0:03:00.2]} 2...
Nc6 {[%clk 0:02:23.4]} 3. Bb5 {[%clk 0:02:59.5]} 3... a6 {[%clk 0:02:22.9]} 4.
Ba4 {[%clk 0:02:59.5]} 4... Nf6 {[%clk 0:02:23.5]} 5. O-O {[%clk 0:02:59.6]}
5... Be7 {[%clk 0:02:23.9]} 6. Re1 {[%clk 0:02:59.3]} 6... b5 {[%clk 0:02:21.5]}
7. Bb3 {[%clk 0:02:59.6]} 7... d6 {[%clk 0:02:21.2]} 8. c3 {[%clk 0:02:59.2]}
8... O-O {[%clk 0:02:20.8]} 9. h3 {[%clk 0:02:58.2]} 9... Nb8 {[%clk 0:02:21]}
10. d3 {[%clk 0:02:57.7]} 10... Nbd7 {[%clk 0:02:21.6]} 11. Nbd2 {[%clk
0:02:58]} 11... Bb7 {[%clk 0:02:20.4]} 12. Nf1 {[%clk 0:02:58]} 12... Nc5 {[%clk
0:02:00.3]} 13. Bc2 {[%clk 0:02:57.4]} 13... Re8 {[%clk 0:01:54.5]} 14. b4
{[%clk 0:02:57]} 14... Ne6 {[%clk 0:01:53.9]} 15. d4 {[%clk 0:02:38.9]} 15...
exd4 {[%clk 0:01:49.9]} 16. cxd4 {[%clk 0:02:39.4]} 16... d5 {[%clk 0:01:49.8]}
17. e5 {[%clk 0:02:40]} 17... Ne4 {[%clk 0:01:49.7]} 18. Rb1 {[%clk 0:02:32.4]}
18... a5 {[%clk 0:01:46.9]} 19. a3 {[%clk 0:02:28]} 19... axb4 {[%clk
0:01:43.6]} 20. axb4 {[%clk 0:02:28.9]} 20... f5 {[%clk 0:01:13.3]} 21. Ng3
{[%clk 0:01:33.4]} 21... g6 {[%clk 0:01:03.7]} 22. Ne2 {[%clk 0:01:32.8]} 22...
Qd7 {[%clk 0:00:47.7]} 23. Qd3 {[%clk 0:01:26.7]} 23... Bf8 {[%clk 0:00:32.4]}
24. Nf4 {[%clk 0:01:22.9]} 24... Nxf4 {[%clk 0:00:26.3]} 25. Bxf4 {[%clk
0:01:23.8]} 25... Qc6 {[%clk 0:00:25.1]} 26. Bb3 {[%clk 0:01:10.7]} 26... Bxb4
{[%clk 0:00:18.3]} 27. Rec1 {[%clk 0:00:58.3]} 27... Qd7 {[%clk 0:00:13.7]} 28.
e6 {[%clk 0:00:58.2]} 28... Qxe6 {[%clk 0:00:13.9]} 29. Qxb5 {[%clk 0:00:53.6]}
29... Qb6 {[%clk 0:00:05]} 30. Bxd5+ {[%clk 0:00:45.7]} 30... Bxd5 {[%clk
0:00:04.2]} 31. Qxd5+ {[%clk 0:00:46.6]} 31... Kg7 {[%clk 0:00:04.5]} 32. Rxc7+
{[%clk 0:00:45]} 1-0